Cogmind - Beta 16 @@@ ROGUE MODE // 2025.11.22 @ 23:00:14 Player: SilverswordXV Result: Destroyed by KO-A7A(R) with Subdweller Laser Performance ------------- Evolutions (0) 0 Regions Visited (2) 400 Robots Destroyed (7) 35 Value Destroyed (156) 156 Prototype IDs (0) 0 Alien Tech Used (0) 0 Bonus (0) 0 TOTAL SCORE: 591 Bonus ------- None Cogmind --------- Core Integrity 0/250 Matter 300/300 Energy 200/200 System Corruption 0% Temperature Cool (6) Movement Rolling (95) Ox1 Location -10/Subcaves Parts ------- > --- POWER (1) -------- Subdweller Power Source > --- PROPULSION (2) --- Light Treads Wheel > --- UTILITY (2) ------ Small Storage Unit > --- WEAPON (2) ------- Light Assault Rifle Subdweller Machine Gun > --- INVENTORY (8) ---- Subdweller Power Source Wheel Wheel Power Shielding Light Assault Rifle Light Cannon Peak State ------------ > --- POWER ------------ Subdweller Power Source > --- PROPULSION ------- Light Treads Wheel > --- UTILITY ---------- Small Storage Unit > --- WEAPON ----------- Light Assault Rifle Subdweller Machine Gun > --- INVENTORY -------- Light Ion Engine Wheel Wheel Power Shielding EM Pulse Gun Assault Rifle Light Assault Rifle [Rating: 8] Favorites ----------- Power Light Ion Engine Engine Light Ion Engine Propulsion Light Treads Treads Light Treads Wheel Wheel Utility Small Storage Unit Storage Small Storage Unit Protection Power Shielding Weapon Light Assault Rifle Ballistic Gun Light Assault Rifle Build | -11 -10 -10 ------- Run | Yrd Mat Sub Slots Evolved . | . . . Power . | . . . Propulsion . | . . . Utility . | . . . Weapon . | . . . Parts Attached 11 | 6 1 4 Power 2 | 1 . 1 Engine 2 | 1 . 1 Core . | . . . Reactor . | . . . Propulsion 4 | 2 . 2 Treads 2 | 1 . 1 Leg . | . . . Wheel 2 | 1 . 1 Hover . | . . . Flight . | . . . Utility 2 | 1 1 . Device . | . . . Storage 1 | 1 . . Processor . | . . . Hackware . | . . . Protection 1 | . 1 . Artifact . | . . . Weapon 3 | 2 . 1 Energy Gun . | . . . Energy Cannon . | . . . Ballistic Gun 3 | 2 . 1 Ballistic Cannon . | . . . Launcher . | . . . Special Weapon . | . . . Impact Weapon . | . . . Slashing Weapon . | . . . Piercing Weapon . | . . . Special Melee Weapon . | . . . Unidentified Prototypes . | . . . Parts Lost 2 | . . 2 Power . | . . . Propulsion 2 | . . 2 Utility . | . . . Weapon . | . . . Highest Loss Streak 1 | . . 1 To Critical Strikes . | . . . Average Backups 5 | 1 5 6 Power . | . 1 1 Propulsion 2 | . 3 2 Utility . | . . . Weapon 1 | . 1 2 Tool/Special . | . . . Unused Backups 8 | . . 8 Power 2 | . . 2 Propulsion 2 | . . 2 Utility 1 | . . 1 Weapon 3 | . . 3 Tool/Special . | . . . Average Slot Usage (%) 92 | . 94 91 Engine 14 | . 14 14 Treads 14 | . 14 14 Wheel 13 | . 14 12 Storage 14 | . 14 14 Protection 8 | . 8 7 Ballistic Gun 28 | . 28 28 Peak Build Rating 8 | 6 7 8 Average Rating 6 | 4 6 7 On Entrance 4 | . 6 7 Avg Prop Armor Cover (%) 10 | 12 12 10 Naked Turns . | . . . Heaviest Build 15 | 11 12 15 Greatest Support 20 | 20 10 20 Greatest Overweight (x) 3 | 3 1 1 Average Overweight (x) . | . 1 . Largest Inventory Capacity 8 | 8 8 8 Average Capacity 7 | 7 8 8 Most Carried 8 | 4 7 8 Average Carried 5 | 2 5 6 Final Capacity 8 | 8 8 8 Final Carried 7 | 4 7 6 Class Distribution -------------------- 100% | Mutant Dominant Class ---------------- Mutant | -10/Materials Mutant | -10/Subcaves Resources | -11 -10 -10 ----------- Run | Yrd Mat Sub Matter Collected 456 | 246 72 138 Remotely . | . . . Salvage Created 266 | . 118 148 Parts 11 | . 3 8 Haulers Intercepted . | . . . Recyclers Shooed . | . . . Parts Field Recycled . | . . . Retrieved Matter . | . . . Parts Self-Destructed . | . . . Prevented . | . . . Parts Restored . | . . . Kills | -11 -10 -10 ------- Run | Yrd Mat Sub Combat Hostiles Destroyed 6 | . 3 3 Guns 6 | . 3 3 Classes Destroyed 3 | . 2 1 Recycler 1 | . 1 . Swarmer 3 | . 3 . Subdweller 3 | . . 3 Best Kill Streak 2 | . 2 1 Combat Bots Only 2 | . 2 1 Max Kills in Single Turn 1 | . 1 1 Gunslinging . | . . . Exploded . | . . . Melee . | . . . Uniques/NPCs Destroyed . | . . . Combat | -11 -10 -10 -------- Run | Yrd Mat Sub Hostile Shots Fired 41 | . 6 35 Missed 11 | . 1 10 Hits 30 | . 5 25 Projectile 30 | . 5 25 AOE 2 | . . 2 Critical Strikes 1 | . . 1 Damage Taken 678 | . 39 639 Core 256 | . 17 239 Absorbed by Shields . | . . . Redirected to Shielding 16 | . . 16 Core Remaining (%) 100 | 100 . . Volleys Fired 39 | . 14 25 Largest 2 | . 2 2 Hottest 40 | . 40 40 Shots Fired 78 | . 28 50 Gun 78 | . 28 50 Cannon . | . . . Launcher . | . . . Special . | . . . Kinetic 78 | . 28 50 Thermal . | . . . Explosive . | . . . Electromagnetic . | . . . Robot Hit Streak 17 | . 2 17 Robot Miss Streak 4 | . 4 2 Penetration Max . | . . . Secondary Targets . | . . . Shots Hit Robots 53 | . 10 43 Core Hits 14 | . 5 9 Critical Kills . | . . . Critical Parts Destroyed . | . . . Critical Strikes . | . . . Melee Attacks . | . . . Impact . | . . . Slashing . | . . . Piercing . | . . . Sneak Attacks . | . . . Combat Hostiles . | . . . Follow-up Attacks . | . . . Damage Inflicted 555 | . 109 446 Guns 555 | . 109 446 Cannons . | . . . Explosions . | . . . Melee . | . . . Ramming . | . . . Kinetic 555 | . 109 446 Thermal . | . . . Explosive . | . . . Electromagnetic . | . . . Impact . | . . . Slashing . | . . . Piercing . | . . . Highest Corruption . | . . . Average Corruption . | . . . Corruption Purged . | . . . Corruption Blocked . | . . . Overload Shots . | . . . Overflow Damage . | . . . Projectiles . | . . . Explosions . | . . . Melee . | . . . Knockbacks . | . . . Impact . | . . . Kinetic . | . . . Secondary . | . . . Self-Inflicted Damage . | . . . Shots . | . . . Rammed . | . . . Targets Rammed . | . . . Kicked . | . . . Crushed . | . . . Highest Temperature . | . . . Average Temperature . | . . . Received Heat Transfer 54 | . . 54 Siege Activations . | . . . Martial Activations . | . . . Shielding Activations . | . . . Robots Disrupted . | . . . Combat Hostiles . | . . . Robots Corrupted . | . . . Combat Hostiles . | . . . Parts Fried . | . . . Impact Corruptions . | . . . Robots Melted . | . . . Combat Hostiles . | . . . Parts Melted 1 | . . 1 Heat Transferred . | . . . Parts Sabotaged . | . . . Parts Stolen . | . . . Parts Stripped . | . . . Power Chain Reactions . | . . . Alert | -11 -10 -10 ------- Run | Yrd Mat Sub Maximum Alert Level . | . . . Low Security (%) 100 | 100 100 . Level 1 . | . . . Level 2 . | . . . Level 3 . | . . . Level 4 . | . . . Level 5 . | . . . High Security . | . . . Max Security . | . . . Peak Influence 65 | . 65 . Initial . | . . . Average 15 | . 19 . Influence Increases 75 | . 75 . Destroy 0b10 Robot/C 60 | . 60 . Destroy 0b10 Robot/NC 5 | . 5 . Destroy Leader 10 | . 10 . Influence Decreases 75 | . 40 35 Entered New Map 18 | . . 18 Time Decay 57 | . 40 17 Squads Dispatched 1 | . 1 . Investigation . | . . . Extermination . | . . . Reinforcement 1 | . 1 . Assault . | . . . Garrison . | . . . Intercept . | . . . Searches Triggered . | . . . Construction Impeded . | . . . Haulers Reinforced . | . . . Active Scanning Responses . | . . . Cargo Convoy Interrupts . | . . . Stealth | -11 -10 -10 --------- Run | Yrd Mat Sub Distress Signals 2 | . 2 . Communications Jammed . | . . . Distress Signals . | . . . Times Spotted 11 | . 6 5 Peak Tracking Total 4 | . 4 4 Tactical Retreats 1 | . . 1 Traps | -11 -10 -10 ------- Run | Yrd Mat Sub Traps Triggered . | . . . Indirectly . | . . . Trap Hack Attempts . | . . . Triggered . | . . . Disarmed . | . . . Reprogrammed . | . . . Reused . | . . . Traps Extracted . | . . . Installed . | . . . Triggered . | . . . Machines | -11 -10 -10 ---------- Run | Yrd Mat Sub Machines Disabled . | . . . Max in Single Turn . | . . . Machines Repaired . | . . . Machines Dismantled . | . . . Machines Sabotaged . | . . . Overloaded Fab Kills . | . . . Hacking | -11 -10 -10 --------- Run | Yrd Mat Sub Machines Accessed 5 | . 4 1 Terminals 4 | . 4 . Fabricators . | . . . Repair Stations . | . . . Recycling Units . | . . . Scanalyzers . | . . . Garrison Access . | . . . Total Hacks 11 | . 7 4 Successful 5 | . 1 4 Failed 6 | . 6 . Catastrophic 1 | . 1 . Database Lockouts . | . . . Manual 6 | . 6 . Terminals 7 | . 7 . Fabricators . | . . . Repair Stations . | . . . Recycling Units . | . . . Scanalyzers . | . . . Garrison Access . | . . . Terminal Hacks 5 | . 1 4 Record 4 | . . 4 Part Schematic 1 | . 1 . Fabricator Hacks . | . . . Repair Station Hacks . | . . . Recycling Unit Hacks . | . . . Scanalyzer . | . . . Garrison Access Hacks . | . . . Unauthorized Hacks . | . . . Terminals . | . . . Fabricators . | . . . Repair Stations . | . . . Recycling Units . | . . . Scanalyzers . | . . . Garrison Access . | . . . Data Cores Recovered . | . . . Used . | . . . Hacking Detections 4 | . 4 . Full Trace Events . | . . . Feedback Events . | . . . Feedback Blocked . | . . . Robot Schematics Acquired . | . . . Robots Built . | . . . Authchips . | . . . Time . | . . . Total Robot Build Rating . | . . . Part Schematics Acquired 1 | . 1 . Parts Built . | . . . Authchips . | . . . Time . | . . . Total Part Build Rating . | . . . Part Studies Acquired . | . . . Parts Repaired . | . . . Time . | . . . Parts Recycled . | . . . Recycled Matter . | . . . Retrieved Matter . | . . . Retrieved Components . | . . . Parts Scanalyzed . | . . . Part Schematics Acquired . | . . . Parts Damaged . | . . . Bothacking | -11 -10 -10 ------------ Run | Yrd Mat Sub Used RIF Installer . | . . . Robots Hacked . | . . . Non-combat . | . . . Combat . | . . . Robot Hacks Applied . | . . . Relay Couplers Released . | . . . Fabnet Peak Effective % . | . . . Robots Rewired . | . . . Allies Hacked . | . . . Hacks Repelled . | . . . Allies | -11 -10 -10 -------- Run | Yrd Mat Sub Total Allies . | . . . Largest Group . | . . . Highest-Rated Group . | . . . Highest-Rated Ally . | . . . Total Orders . | . . . Ally Attacks . | . . . Total Damage . | . . . Kills . | . . . Allies Corrupted . | . . . Allies Melted . | . . . Intel | -11 -10 -10 ------- Run | Yrd Mat Sub Active Infowar (turns) . | . . . Robot Analysis Total . | . . . Derelict Logs Recovered 1 | . . 1 Drone Launches . | . . . Drone Recoveries . | . . . Exploration | -11 -10 -10 ------------- Run | Yrd Mat Sub Turns Passed 743 | 67 239 437 Spaces Moved 542 | 57 193 292 Core 25 | 25 . . Treads 104 | 2 . 102 Legs . | . . . Wheels 413 | 30 193 190 Hover . | . . . Flight . | . . . Fastest Speed 50 | 50 95 95 Average Speed 107 | 95 95 117 Slowest Speed 200 | 200 95 160 Overloaded Moves . | . . . Propulsion Burnouts . | . . . Robots Hopped . | . . . Potential Cave-ins . | . . . Cave-ins Triggered . | . . . Exploration Rate (%) 21 | 3 33 27 Regions Visited 2 Branch Regions 1 Pre-discovered Areas . | . . . Known Exits Taken . | . . . Unknown Exits Taken 2 | 1 1 . Scrap Searched . | . . . Spaces Dug . | . . . Terrain Destroyed . | . . . Melee . | . . . Projectile . | . . . AOE . | . . . Terrain Rammed . | . . . Walls Destroyed . | . . . Machines Disabled . | . . . Actions | -11 -10 -10 --------- Run | Yrd Mat Sub Total 631 | 66 222 343 Wait 23 | . 12 11 Move 540 | 56 192 292 Hop . | . . . Pick Up 10 | 4 3 3 Fast Attach 9 | 6 1 2 Attach 2 | . . 2 Detach 3 | . . 3 Swap . | . . . Drop 5 | . . 5 Fire 39 | . 14 25 Melee . | . . . Ram . | . . . Kick . | . . . Crush . | . . . Escape Stasis . | . . . Rewire . | . . . Trap . | . . . Miscellaneous . | . . . Route ------- -11/Scrapyard -10/Materials (discovered 3 exits: [*Mat] / [*Min] / *Sub) -10/Subcaves (discovered 3 exits: Mat x2 / Rec) History --------- Turn | Location | Event 22 | -11/Scrapyard | Discovered new exit (range 15) 68 | -11/Scrapyard | Entered Materials 150 | -10/Materials | Discovered new exit (range 7) 166 | -10/Materials | Discovered new exit (range 10) 297 | -10/Materials | Discovered new exit (range 10) 307 | -10/Materials | Entered Subcaves 309 | -10/Subcaves | Identified exit to Materials 317 | -10/Subcaves | Build established: Mutant 396 | -10/Subcaves | Disturbed a concealed Subdweller 401 | -10/Subcaves | Ambushed by Subdweller buried in earth 445 | -10/Subcaves | Visited Clippyterm 448 | -10/Subcaves | Identified exit to Recycling 476 | -10/Subcaves | Core integrity fell below 50% 527 | -10/Subcaves | Core integrity fell below 20% 744 | -10/Subcaves | Destroyed by KO-A7A(R) with Subdweller Laser Last Messages --------------- 00534_ GO-P6A(R) destroyed. 00535_ Subatomizers dissect the Sub. Machine Gun. 00541_ Acquired Scrap Shield. 00542_ Dropped Scrap Shield. 00547_ Acquired Sub. Machine Gun. 00550_ Acquired 54 matter. 00554_ Acquired 41 matter. 00558_ Acquired 33 matter. 00561_ Subatomizers dissect the Sub. Monowheel. 00565_ Dropped Lgt. Ion Engine. 00566_ Acquired Sub. Power Source. 00567_ Dropped Lgt. Ion Engine. 00569_ Acquired Sub. Power Source. 00572_ Acquired 10 matter. 00578_ Dropped Assault Rifle. 00579_ Dropped EM Pulse Gun. 00579_ Acquired Lgt. Cannon. 00586_ Subatomizers dissect the Sub. Monowheel. Map ----- +----------------------------------------------------+ | ?????????????????????????????????????????????????? | | ?????????????????????????????????????????????????? | | ????????????????????? ###???????????????????????? | | ????????????????????? ??????????????????????? | | ???????????????????? ??????????????????????? | | ???????????????????? #???????????????????????? | | ?????????????????### #???????????????????????? | | ????????????????? ## ?????????????????????? | | ??????????###???? ?????????????????????? | | ??????????# ####? #? #?????????????????????? | | ??######### ## #?# ##???###??????????????? | | ### ## #?# ##?# #??????????????? | | # % ### ## #???????????????? | | ?# #????????????????? | | ?## ### ##???????????????? | | ??## ## #????# ##??????????????? | | ???# ### #????# #??????????????? | | ??## ## ###### #???????????????? | | ??# ## ## #???????????????? | | ?## ###### #????????????????? | | ?# ##???## #??????????????????? | | ## ####?## ### ###????????????????? | | # ##?# #####?## ###??????????????? | | # ## #??????## #??????????????? | | ### #???????## #??????????????? | | % ##? #????????#@ # ##??????????????? | | ##?# ??????? R### ##???????????????? | | ###% #?# ?????? #??####????????????????? | | ##?# #??#???? ##??????????????????????? | | # #??##"##?????# #????????????????????????? | | # ##???##??????#### ?????????????????????????? | | #""" #??????????????# ?????????????????????????? | | ######?????????????? ??????????????????????????? | | ??????????????????? ??????????????????????????? | | ??????????????????# % ??????????????????????????? | | ??????????????????# ???????????????????????????? | | ??????????????????# ???????????????????????????? | | ??????????????????# ????????????????????????????? | | ?????????????????? ????????????????????????????? | | ?????????????????????????????????????????????????? | | ?????????????????????????????????????????????????? | | ?????????????????????????????????????????????????? | | ?????????????????????????????????????????????????? | | ?????????????????????????????????????????????????? | | ?????????????????????????????????????????????????? | | ?????????????????????????????????????????????????? | | ?????????????????????????????????????????????????? | | ?????????????????????????????????????????????????? | | ?????????????????????????????????????????????????? | | ?????????????????????????????????????????????????? | +----------------------------------------------------+ Best States ------------- Heat Dissipation 25 Energy Generation 15 Energy Capacity 200 Matter Stores 300 Matter Capacity 300 Sight Range 16 Terrain Scan Density 10 Power Shielding 33 Evasion (%) 41 Recoil Reduction 1 Item Schematics ----------------- Lrg. Storage Unit | -10/Materials | Hacked Robot Schematics ------------------ None Fabricated ------------ Nothing Repaired ---------- Nothing Studied --------- None Alien Tech Used ----------------- None Achievements -------------- Do Not Disturb Challenges ------------ None Game ------ Seed RingDeliveryBroadsword Manual? 0 Play Time 00:14:39 Cumulative 29.6 hours Start 2025.11.22 @ 22:06:20 End 2025.11.22 @ 23:00:14 Sessions 1 Manual Loads 0 Difficulty Rogue Special Mode None Game No. 27 Rogue 27 Adventurer 0 Explorer 0 Win Type - Total 0 Types 0/0/0/0/0/0/0/0/0/0 Lore% 15 Gallery% 22 Achievement% 20 Wizard Run 0 Options --------- Layout 1 ASCII 0 Keyboard 1 Movement Numpad Keybinds 0 Fullscreen 1 Font 24/Smallcaps Map View 50x35 Zoom Use 0% Tactical HUD 1 Map Filters NONE Filters NONE Steam 1 RUN: 234c9a52-2873-4f91-8b29-9f07403a3a5e